[Event "EYCC Open-U10 2019"]
[Site "Bratislava"]
[Date "2019.08.04"]
[Round "3.11"]
[White "Shearsby, Jude"]
[Black "Efimov, Leonid"]
[Result "1/2-1/2"]
[ECO "D00"]
[WhiteElo "1486"]
[BlackElo "1773"]
[Annotator "NA"]
[PlyCount "102"]
[EventDate "2019.08.02"]
[EventType "swiss"]
[EventCountry "SVK"]
[SourceTitle "playchess.com"]
[Source "ChessBase"]
[SourceQuality "1"]
[TimeControl "40/5400+30:1800+30"]

1. d4 {[%emt 0:00:00]} d5 {[%emt 0:00:00]} 2. Bf4 {[%emt 0:00:04]} c5 {[%emt 0:00:00]} 3. e3 {[%emt 0:00:12]} Nc6 {[%emt 0:00:04]} 4. Nc3 {[%emt 0:01:23]} Nf6 {[%emt 0:00:54]} 5. Nb5 {[%emt 0:00:22]} Qa5+ {[%emt 0:34:35]} 6. c3 {[%emt 0:00:20]} cxd4 {[%emt 0:01:24]} 7. exd4 {[%emt 0:00:21]} e5 {[%emt 0:14:00]} 8. dxe5 {[%emt 0:00:10]} Bg4 {[%emt 0:00:42]} 9. f3 {[%emt 0:00:38]} Nh5 {[%emt 0:00:22]} 10. Be3 {[%emt 0:09:02]} Be6 {[%emt 0:11:25]} 11. g4 {[%emt 0:01:36]} d4 {[%emt 0:01:42]} 12. Nxd4 {[%emt 0:01:35]} Qxe5 {[%emt 0:01:17]} 13. Nxc6 {[%emt 0:06:13]} Qxe3+ {[%emt 0:01:50]} 14. Qe2 {[%emt 0:00:05]} Qb6 {[%emt 0:02:55]} 15. Nd4 {[%emt 0:01:01]} Nf4 {[%emt 0:02:14]} 16. Qb5+ {[%emt 0:00:09]} Bd7 {[%emt 0:03:23]} 17. Qxb6 {[%emt 0:00:52]} axb6 {[%emt 0:00:02]} 18. Bc4 {[%emt 0:01:35]} Bd6 {[%emt 0:02:31]} 19. O-O-O {[%emt 0:00:57]} h5 {[%emt 0:03:49]} 20. Nb5 {[%emt 0:01:09]} Bxb5 {[%emt 0:02:19]} 21. Bxb5+ {[%emt 0:00:14]} Ke7 {[%emt 0:00:18]} 22. Kb1 {[%emt 0:01:25]} f6 {[%emt 0:03:59]} 23. Ne2 {[%emt 0:00:47]} Nxe2 {[%emt 0:00:29]} 24. Rhe1 {[%emt 0:00:40]} Rad8 {[%emt 0:02:19]} 25. Rxe2+ {[%emt 0:00:31]} Kf7 {[%emt 0:00:16]} 26. gxh5 {[%emt 0:01:24]} Be5 {[%emt 0:01:42]} 27. Bc4+ {[%emt 0:01:06]} Ke7 {[%emt 0:00:22]} 28. Rg1 {[%emt 0:00:14]} Kf8 {[%emt 0:00:17]} 29. Reg2 {[%emt 0:00:43]} Rd7 {[%emt 0:01:09]} 30. Be6 {[%emt 0:02:13]} Re7 {[%emt 0:00:37]} 31. Bg4 {[%emt 0:00:13]} f5 {[%emt 0:00:53]} 32. Bxf5 {[%emt 0:00:58]} Rxh5 {[%emt 0:00:01]} 33. Be4 {[%emt 0:00:42]} Rxh2 {[%emt 0:01:02]} 34. Rxh2 {[%emt 0:00:05]} Bxh2 {[%emt 0:00:04]} 35. Rg6 {[%emt 0:00:19]} Bc7 {[%emt 0:00:48]} 36. Bxb7 {[%emt 0:01:16]} Kf7 {[%emt 0:00:13]} 37. Rg2 {[%emt 0:00:21]} Kf6 {[%emt 0:00:27]} 38. Be4 {[%emt 0:00:10]} g5 {[%emt 0:00:13]} 39. Kc2 {[%emt 0:00:16]} Rg7 {[%emt 0:00:44]} 40. Kb3 {[%emt 0:00:00]} Ke5 {[%emt 0:00:00]} 41. Rg4 {[%emt 0:00:44]} Bd8 {[%emt 0:02:07]} 42. Kc4 {[%emt 0:00:32]} Ra7 {[%emt 0:00:56]} 43. a3 {[%emt 0:00:28]} Ra4+ {[%emt 0:01:02]} 44. Kd3 {[%emt 0:00:24]} Ra7 {[%emt 0:01:36]} 45. Rg2 {[%emt 0:01:26]} Rd7+ {[%emt 0:04:22]} 46. Ke3 {[%emt 0:00:42]} Be7 {[%emt 0:00:50]} 47. Rd2 {[%emt 0:00:43]} Bc5+ {[%emt 0:01:40]} 48. Ke2 {[%emt 0:00:02]} Rxd2+ {[%emt 0:01:45]} 49. Kxd2 {[%emt 0:00:10]} g4 {[%emt 0:00:04]} 50. Ke2 {[%emt 0:01:49]} Kf4 51. Bc6 g3 1/2-1/2

[Event "EYCC Open-U10 2019"]
[Site "Bratislava"]
[Date "2019.08.04"]
[Round "3.12"]
[White "Yonal, Timur"]
[Black "kiladze, Luka"]
[Result "0-1"]
[ECO "A05"]
[WhiteElo "1512"]
[BlackElo "1683"]
[Annotator "NA"]
[PlyCount "114"]
[EventDate "2019.08.02"]
[EventType "swiss"]
[EventCountry "SVK"]
[SourceTitle "playchess.com"]
[Source "ChessBase"]
[SourceQuality "1"]
[TimeControl "40/5400+30:1800+30"]

1. Nf3 {[%emt 0:00:00]} Nf6 {[%emt 0:00:00]} 2. g3 {[%emt 0:00:00]} g6 {[%emt 0:00:00]} 3. Bg2 {[%emt 0:00:00]} Bg7 {[%emt 0:00:35]} 4. d4 {[%emt 0:00:00]} O-O {[%emt 0:00:17]} 5. c4 {[%emt 0:00:00]} d6 {[%emt 0:00:26]} 6. O-O {[%emt 0:00:08]} c6 {[%emt 0:00:43]} 7. b3 {[%emt 0:03:08]} Nbd7 {[%emt 0:01:13]} 8. Bb2 {[%emt 0:00:14]} Qc7 {[%emt 0:00:15]} 9. Qc2 {[%emt 0:01:05]} e5 {[%emt 0:01:42]} 10. Nc3 {[%emt 0:10:09]} Re8 {[%emt 0:05:32]} 11. Rad1 {[%emt 0:05:50]} a6 {[%emt 0:05:37]} 12. Rfe1 {[%emt 0:06:23]} Rb8 {[%emt 0:06:52]} 13. Ba3 {[%emt 0:00:33]} e4 {[%emt 0:00:49]} 14. Ng5 {[%emt 0:01:27]} e3 {[%emt 0:06:31]} 15. Nh3 {[%emt 0:04:16]} b5 {[%emt 0:03:00]} 16. Bc1 {[%emt 0:11:10]} Nb6 {[%emt 0:10:13]} 17. c5 {[%emt 0:06:20]} Nbd5 {[%emt 0:01:20]} 18. Nxd5 {[%emt 0:03:58]} Nxd5 {[%emt 0:03:59]} 19. fxe3 {[%emt 0:13:25]} Nxe3 {[%emt 0:03:29]} 20. Bxe3 {[%emt 0:00:59]} Rxe3 {[%emt 0:00:14]} 21. Nf4 {[%emt 0:07:01]} Bd7 {[%emt 0:11:33]} 22. Kf2 {[%emt 0:06:34]} Rbe8 {[%emt 0:06:29]} 23. Bf1 {[%emt 0:05:04]} Bf5 {[%emt 0:04:39]} 24. Qc1 {[%emt 0:00:30]} Bh6 {[%emt 0:05:17]} 25. cxd6 {[%emt 0:01:45]} Qxd6 {[%emt 0:01:30]} 26. Qxe3 {[%emt 0:00:28]} Rxe3 {[%emt 0:00:11]} 27. Kxe3 {[%emt 0:00:06]} g5 {[%emt 0:01:01]} 28. Nd3 {[%emt 0:02:14]} Qd5 {[%emt 0:01:23]} 29. Kf2 {[%emt 0:00:48]} Qxd4+ {[%emt 0:01:05]} 30. e3 {[%emt 0:00:09]} Qe4 {[%emt 0:00:34]} 31. Bg2 Qe7 {[%emt 0:02:58]} 32. Rd2 {[%emt 0:03:49]} Qf6 {[%emt 0:00:50]} 33. Nc1 {[%emt 0:01:09]} g4 {[%emt 0:03:24]} 34. Kg1 {[%emt 0:00:05]} Qc3 {[%emt 0:00:29]} 35. Rde2 {[%emt 0:00:03]} Bf8 {[%emt 0:01:09]} 36. a4 {[%emt 0:01:23]} Bb1 {[%emt 0:04:49]} 37. Kf2 {[%emt 0:01:20]} Ba3 {[%emt 0:01:13]} 38. Na2 {[%emt 0:00:06]} Qxb3 {[%emt 0:00:17]} 39. axb5 {[%emt 0:00:00]} axb5 {[%emt 0:00:00]} 40. Nc1 {[%emt 0:00:00]} Qc4 {[%emt 0:00:00]} 41. Na2 {[%emt 0:02:37]} Bc2 {[%emt 0:05:48]} 42. h3 {[%emt 0:02:26]} b4 {[%emt 0:02:16]} 43. Nxb4 {[%emt 0:00:17]} Ba4 {[%emt 0:04:59]} 44. Na2 {[%emt 0:03:02]} Bb3 {[%emt 0:00:38]} 45. Ra1 {[%emt 0:00:11]} gxh3 {[%emt 0:00:49]} 46. Bxh3 {[%emt 0:00:06]} h5 {[%emt 0:00:34]} 47. g4 {[%emt 0:01:02]} h4 {[%emt 0:00:21]} 48. g5 {[%emt 0:01:49]} Bd6 {[%emt 0:03:56]} 49. Rd2 {[%emt 0:02:03]} Bg3+ {[%emt 0:03:33]} 50. Kg1 {[%emt 0:00:28]} Qe4 {[%emt 0:00:31]} 51. Rd8+ {[%emt 0:00:49]} Kg7 {[%emt 0:00:16]} 52. Bd7 {[%emt 0:05:25]} Qxe3+ {[%emt 0:00:20]} 53. Kg2 {[%emt 0:00:10]} Bd5+ {[%emt 0:00:25]} 54. Kh3 {[%emt 0:00:07]} Bc7+ {[%emt 0:00:33]} 55. Kxh4 {[%emt 0:00:05]} Qg3+ {[%emt 0:00:06]} 56. Kh5 {[%emt 0:00:05]} Bf3+ {[%emt 0:00:06]} 57. Bg4 {[%emt 0:00:05]} Bxg4# {[%emt 0:00:05]} 0-1

[Event "EYCC Open-U10 2019"]
[Site "Bratislava"]
[Date "2019.08.05"]
[Round "4.1"]
[White "Materia, Marco"]
[Black "Zverev, Lev"]
[Result "1-0"]
[ECO "E43"]
[WhiteElo "2243"]
[BlackElo "1849"]
[Annotator "NA"]
[PlyCount "99"]
[EventDate "2019.08.02"]
[EventType "swiss"]
[EventCountry "SVK"]
[SourceTitle "playchess.com"]
[Source "ChessBase"]
[SourceQuality "1"]
[TimeControl "40/5400+30:1800+30"]

1. d4 Nf6 2. c4 e6 3. Nc3 Bb4 4. e3 b6 5. Bd3 Bb7 6. Nf3 O-O 7. O-O d5 8. cxd5 exd5 9. Ne5 Nbd7 10. f4 Ne4 11. Nxe4 dxe4 12. Bc4 Bd6 13. Qb3 Qe7 14. Bd2 Nf6 15. Be1 a6 16. a4 Nd7 17. Bh4 Qe8 18. Bd5 Bxd5 19. Qxd5 Kh8 20. Nxd7 Qxd7 21. Qxe4 f5 22. Qd3 a5 23. Bf2 Rae8 24. Rfc1 Re4 25. Qb5 Qe6 26. Qc4 Qe7 27. Qd5 g6 28. Qb3 Re8 29. Qd3 Kg7 30. Kh1 Kh8 31. Rf1 Qe6 32. Rac1 Kg7 33. Qc3 Qd7 34. Qc6 Qe6 35. Rfd1 Qe7 36. Rd3 Re6 37. Qc3 Re4 38. Qb3 Kh8 39. Qd1 Kg7 40. Rdc3 Kg8 41. h3 Qd7 42. Qb3+ Kg7 43. Rc6 Kh8 44. Qb5 Qe6 45. Rxc7 Bxc7 46. Rxc7 Rd8 47. Qa6 Re8 48. Bh4 Rxe3 49. Qb7 Re1+ 50. Kh2 1-0

[Event "EYCC Open-U10 2019"]
[Site "Bratislava"]
[Date "2019.08.05"]
[Round "4.2"]
[White "kiladze, Luka"]
[Black "Finek, Vaclav"]
[Result "1/2-1/2"]
[ECO "A48"]
[WhiteElo "1683"]
[BlackElo "2043"]
[Annotator "NA"]
[PlyCount "134"]
[EventDate "2019.08.02"]
[EventType "swiss"]
[EventCountry "SVK"]
[SourceTitle "playchess.com"]
[Source "ChessBase"]
[SourceQuality "1"]
[TimeControl "40/5400+30:1800+30"]

1. d4 Nf6 2. Nf3 g6 3. Bf4 Bg7 4. e3 O-O 5. h3 c5 6. c3 d5 7. Bd3 b6 8. O-O Bb7 9. Nbd2 Nbd7 10. Qe2 Ne4 11. Rad1 Qc8 12. Ne5 Nxe5 13. dxe5 Nxd2 14. Rxd2 Qe6 15. Qg4 Qxg4 16. hxg4 c4 17. Be2 b5 18. Bf3 e6 19. Rfd1 Rfc8 20. Re2 f6 21. exf6 Bxf6 22. g5 Bg7 23. e4 e5 24. Be3 dxe4 25. Bg4 Rd8 26. Red2 Rd3 27. Be6+ Kh8 28. b3 cxb3 29. Bxb3 Rad8 30. Bc2 Rxd2 31. Rxd2 Rxd2 32. Bxd2 Bd5 33. a4 a6 34. axb5 axb5 35. Kf1 Kg8 36. Bd1 Kf7 37. Bg4 Be6 38. Be2 Bc4 39. Bxc4+ bxc4 40. Be3 Bf8 41. Ke2 Ke6 42. g4 Kd5 43. Kd1 Be7 44. Kc2 Kc6 45. Kd1 Kb5 46. Kc2 Ka4 47. Kb2 Bd6 48. Ka2 Bc7 49. Bd2 Bb6 50. Be3 Ba5 51. Kb2 Bd8 52. Ka2 Bc7 53. Bd2 e3 54. Bxe3 e4 55. Bd4 Bd8 56. Be3 Be7 57. Bf4 Bf8 58. Be3 Bg7 59. Kb2 Be5 60. Bd2 Kb5 61. Be3 Kc6 62. Kc2 Kd5 63. Kd2 Bd6 64. Kc2 Be7 65. Kd2 Bd6 66. Kc2 Ke6 67. Kd2 Ke5 1/2-1/2

[Event "EYCC Open-U10 2019"]
[Site "Bratislava"]
[Date "2019.08.05"]
[Round "4.3"]
[White "Vetokhin, Savva"]
[Black "Averin, Nikolay"]
[Result "1-0"]
[ECO "C07"]
[WhiteElo "1954"]
[BlackElo "1840"]
[Annotator "NA"]
[PlyCount "93"]
[EventDate "2019.08.02"]
[EventType "swiss"]
[EventCountry "SVK"]
[SourceTitle "playchess.com"]
[Source "ChessBase"]
[SourceQuality "1"]
[TimeControl "40/5400+30:1800+30"]

1. e4 {[%emt 0:00:00]} e6 {[%emt 0:00:00]} 2. d4 {[%emt 0:00:00]} d5 {[%emt 0:00:00]} 3. Nd2 {[%emt 0:00:00]} c5 {[%emt 0:00:00]} 4. Ngf3 {[%emt 0:00:00]} cxd4 {[%emt 0:00:00]} 5. Nxd4 {[%emt 0:00:00]} Nc6 {[%emt 0:00:00]} 6. Bb5 {[%emt 0:00:12]} Bd7 {[%emt 0:00:05]} 7. Nxc6 {[%emt 0:00:06]} bxc6 {[%emt 0:00:01]} 8. Bd3 {[%emt 0:00:08]} Qc7 {[%emt 0:00:07]} 9. O-O {[%emt 0:00:12]} Ne7 {[%emt 0:00:20]} 10. Nf3 {[%emt 0:00:22]} g6 {[%emt 0:01:38]} 11. Re1 {[%emt 0:00:49]} Bg7 {[%emt 0:00:20]} 12. e5 {[%emt 0:00:29]} O-O {[%emt 0:00:41]} 13. Bf4 {[%emt 0:01:12]} c5 {[%emt 0:00:17]} 14. b3 {[%emt 0:00:16]} d4 {[%emt 0:08:01]} 15. Ng5 {[%emt 0:04:43]} Nd5 {[%emt 0:00:39]} 16. Bg3 {[%emt 0:00:05]} Nc3 {[%emt 0:00:47]} 17. Qg4 {[%emt 0:00:15]} Bc6 {[%emt 0:09:53]} 18. h4 {[%emt 0:01:58]} h5 {[%emt 0:05:07]} 19. Qf4 {[%emt 0:01:08]} Qb7 {[%emt 0:02:06]} 20. Ne4 {[%emt 0:01:14]} Nxe4 {[%emt 0:01:23]} 21. Bxe4 {[%emt 0:00:02]} Bxe4 {[%emt 0:00:27]} 22. Rxe4 {[%emt 0:00:04]} Rfd8 {[%emt 0:00:56]} 23. Rae1 {[%emt 0:00:18]} Qb4 {[%emt 0:01:12]} 24. Bh2 {[%emt 0:00:52]} Qa3 {[%emt 0:06:31]} 25. g4 {[%emt 0:01:17]} Qxa2 {[%emt 0:00:56]} 26. R1e2 {[%emt 0:00:42]} d3 {[%emt 0:06:13]} 27. cxd3 {[%emt 0:00:05]} Qxb3 {[%emt 0:00:09]} 28. gxh5 {[%emt 0:00:08]} a5 {[%emt 0:07:20]} 29. h6 {[%emt 0:03:29]} Bh8 {[%emt 0:01:17]} 30. h7+ {[%emt 0:00:52]} Kf8 {[%emt 0:04:37]} 31. Qf6 {[%emt 0:00:30]} Bxf6 {[%emt 0:11:05]} 32. exf6 {[%emt 0:01:38]} Ke8 {[%emt 0:00:43]} 33. h8=Q+ {[%emt 0:00:07]} Kd7 {[%emt 0:00:05]} 34. Qh6 {[%emt 0:00:10]} g5 {[%emt 0:01:01]} 35. Qh5 {[%emt 0:01:05]} Rf8 {[%emt 0:02:39]} 36. hxg5 {[%emt 0:00:26]} Qd5 {[%emt 0:01:55]} 37. Qg4 {[%emt 0:01:40]} Rg8 {[%emt 0:02:03]} 38. Re5 {[%emt 0:00:08]} Qc6 {[%emt 0:00:11]} 39. d4 {[%emt 0:02:59]} Qa4 {[%emt 0:00:31]} 40. Rd5+ {[%emt 0:00:00]} Kc6 {[%emt 0:00:00]} 41. Rxc5+ {[%emt 0:01:00]} Kb6 {[%emt 0:01:01]} 42. Rb2+ {[%emt 0:00:13]} Qb4 {[%emt 0:00:20]} 43. Rxb4+ {[%emt 0:00:04]} axb4 {[%emt 0:00:01]} 44. Bc7+ {[%emt 0:00:15]} Ka6 {[%emt 0:00:13]} 45. Qe2+ {[%emt 0:00:03]} Kb7 {[%emt 0:00:02]} 46. Qb5+ {[%emt 0:00:06]} Kc8 {[%emt 0:00:29]} 47. Ba5# {[%emt 0:00:08]} 1-0

[Event "EYCC Open-U10 2019"]
[Site "Bratislava"]
[Date "2019.08.05"]
[Round "4.4"]
[White "Samunenkov, Ihor"]
[Black "Deladerriere, Apollo"]
[Result "1-0"]
[ECO "A45"]
[WhiteElo "1985"]
[BlackElo "1696"]
[Annotator "NA"]
[PlyCount "59"]
[EventDate "2019.08.02"]
[EventType "swiss"]
[EventCountry "SVK"]
[SourceTitle "playchess.com"]
[Source "ChessBase"]
[SourceQuality "1"]
[TimeControl "40/5400+30:1800+30"]

1. d4 {[%emt 0:00:00]} Nf6 {[%emt 0:01:02]} 2. g3 {[%emt 0:00:04]} c5 {[%emt 0:00:57]} 3. d5 {[%emt 0:00:13]} b5 {[%emt 0:00:38]} 4. Bg2 {[%emt 0:00:17]} d6 {[%emt 0:00:38]} 5. b3 {[%emt 0:01:25]} g6 {[%emt 0:01:40]} 6. Nf3 {[%emt 0:00:41]} Bg7 {[%emt 0:00:56]} 7. Bb2 {[%emt 0:00:17]} O-O {[%emt 0:01:30]} 8. O-O {[%emt 0:00:42]} Nbd7 {[%emt 0:06:21]} 9. Re1 {[%emt 0:00:34]} a5 {[%emt 0:04:23]} 10. e4 {[%emt 0:10:00]} Nb6 {[%emt 0:06:16]} 11. Nh4 {[%emt 0:11:57]} e6 {[%emt 0:12:16]} 12. dxe6 {[%emt 0:07:57]} fxe6 {[%emt 0:01:21]} 13. e5 {[%emt 0:04:19]} Nfd5 {[%emt 0:02:32]} 14. Nd2 {[%emt 0:04:29]} Ra7 {[%emt 0:10:09]} 15. Ne4 {[%emt 0:01:23]} Rd7 {[%emt 0:14:20]} 16. Qg4 {[%emt 0:07:47]} Qe8 {[%emt 0:09:40]} 17. Ng5 {[%emt 0:06:17]} Rd8 {[%emt 0:04:50]} 18. Be4 {[%emt 0:01:23]} dxe5 {[%emt 0:01:16]} 19. Nxh7 {[%emt 0:02:59]} Qf7 {[%emt 0:03:23]} 20. Nxf8 {[%emt 0:00:46]} Rxf8 {[%emt 0:00:08]} 21. f3 {[%emt 0:01:39]} Qa7 {[%emt 0:05:05]} 22. Qxg6 {[%emt 0:00:37]} c4 {[%emt 0:00:55]} 23. Qh7+ {[%emt 0:00:24]} Kf7 {[%emt 0:00:09]} 24. Bg6+ {[%emt 0:00:14]} Ke7 25. Qxg7+ {[%emt 0:00:35]} Kd8 {[%emt 0:01:19]} 26. Qxa7 {[%emt 0:00:28]} a4 {[%emt 0:01:17]} 27. Rad1 {[%emt 0:00:10]} axb3 {[%emt 0:00:10]} 28. Bxe5 {[%emt 0:00:13]} Na8 {[%emt 0:00:12]} 29. Bf7 {[%emt 0:00:23]} bxc2 {[%emt 0:00:48]} 30. Bf6# {[%emt 0:00:16]} 1-0

[Event "EYCC Open-U10 2019"]
[Site "Bratislava"]
[Date "2019.08.05"]
[Round "4.5"]
[White "Simbelov, Roman T."]
[Black "Usov, Aleksandr E."]
[Result "1-0"]
[ECO "B15"]
[WhiteElo "1560"]
[BlackElo "1809"]
[Annotator "NA"]
[PlyCount "142"]
[EventDate "2019.08.02"]
[EventType "swiss"]
[EventCountry "SVK"]
[SourceTitle "playchess.com"]
[Source "ChessBase"]
[SourceQuality "1"]
[TimeControl "40/5400+30:1800+30"]

1. e4 {[%emt 0:00:00]} c6 {[%emt 0:00:00]} 2. d4 {[%emt 0:00:00]} d5 {[%emt 0:00:00]} 3. Nc3 {[%emt 0:00:00]} dxe4 {[%emt 0:00:00]} 4. Nxe4 {[%emt 0:00:15]} Nf6 {[%emt 0:00:00]} 5. Nxf6+ {[%emt 0:00:28]} exf6 {[%emt 0:00:00]} 6. c3 {[%emt 0:01:04]} Bd6 {[%emt 0:00:03]} 7. Bd3 {[%emt 0:01:37]} O-O {[%emt 0:00:06]} 8. Qc2 {[%emt 0:00:14]} Re8+ {[%emt 0:00:06]} 9. Ne2 {[%emt 0:00:08]} h5 {[%emt 0:00:04]} 10. O-O {[%emt 0:01:06]} h4 {[%emt 0:00:04]} 11. Re1 {[%emt 0:04:45]} h3 {[%emt 0:02:40]} 12. g3 {[%emt 0:00:54]} Bg4 {[%emt 0:20:26]} 13. Bf5 {[%emt 0:01:46]} Bxf5 {[%emt 0:15:42]} 14. Qxf5 {[%emt 0:00:10]} Qd7 {[%emt 0:00:21]} 15. Qxd7 {[%emt 0:00:38]} Nxd7 {[%emt 0:00:03]} 16. Bf4 {[%emt 0:00:14]} Bb8 {[%emt 0:02:56]} 17. Bxb8 {[%emt 0:01:17]} Raxb8 {[%emt 0:00:36]} 18. Nf4 {[%emt 0:00:33]} g5 {[%emt 0:02:02]} 19. Nxh3 {[%emt 0:00:18]} Kg7 {[%emt 0:02:16]} 20. f3 {[%emt 0:00:37]} Nb6 {[%emt 0:00:40]} 21. Nf2 {[%emt 0:07:07]} Nc4 {[%emt 0:07:09]} 22. Nd3 {[%emt 0:01:01]} Nd6 {[%emt 0:09:19]} 23. Kf2 {[%emt 0:02:32]} f5 {[%emt 0:02:24]} 24. Rad1 {[%emt 0:05:30]} f6 {[%emt 0:04:01]} 25. Nc5 {[%emt 0:01:12]} Kf7 {[%emt 0:01:10]} 26. Nd3 {[%emt 0:01:10]} a5 {[%emt 0:03:08]} 27. a4 {[%emt 0:01:29]} Rh8 {[%emt 0:01:32]} 28. Kg2 {[%emt 0:02:09]} f4 {[%emt 0:06:27]} 29. Re2 {[%emt 0:03:56]} Nf5 {[%emt 0:03:24]} 30. Rde1 {[%emt 0:03:46]} Rbg8 {[%emt 0:07:35]} 31. Nf2 {[%emt 0:02:28]} Rh7 {[%emt 0:07:08]} 32. Ng4 {[%emt 0:06:13]} Rgh8 {[%emt 0:00:42]} 33. Kf2 {[%emt 0:08:50]} Rh3 {[%emt 0:03:38]} 34. Rg1 {[%emt 0:05:48]} Nh6 {[%emt 0:00:35]} 35. gxf4 {[%emt 0:03:26]} Nxg4+ {[%emt 0:00:39]} 36. Rxg4 {[%emt 0:04:09]} gxf4 {[%emt 0:00:27]} 37. Rg2 {[%emt 0:09:03]} Rxh2 {[%emt 0:00:09]} 38. Re4 {[%emt 0:01:06]} R8h4 {[%emt 0:00:28]} 39. Re1 {[%emt 0:05:14]} Rh1 {[%emt 0:00:33]} 40. Reg1 {[%emt 0:00:00]} Rxg1 {[%emt 0:00:00]} 41. Rxg1 {[%emt 0:03:35]} Rh8 {[%emt 0:02:08]} 42. Rg4 {[%emt 0:00:29]} f5 {[%emt 0:12:48]} 43. Rg2 {[%emt 0:02:04]} Kf6 {[%emt 0:03:07]} 44. Ke2 {[%emt 0:00:16]} Rh1 {[%emt 0:00:30]} 45. Kd3 {[%emt 0:02:03]} Rf1 {[%emt 0:01:37]} 46. Ke2 {[%emt 0:02:13]} Ra1 {[%emt 0:00:16]} 47. Rh2 {[%emt 0:00:25]} Kg6 {[%emt 0:03:17]} 48. Rg2+ {[%emt 0:00:14]} Kf6 {[%emt 0:00:05]} 49. Rh2 {[%emt 0:00:08]} Rxa4 {[%emt 0:00:15]} 50. Rh7 {[%emt 0:00:19]} b5 {[%emt 0:00:38]} 51. Rh6+ {[%emt 0:00:23]} Ke7 {[%emt 0:01:11]} 52. Rxc6 {[%emt 0:00:27]} Ra2 {[%emt 0:00:08]} 53. Rc5 {[%emt 0:01:08]} Rxb2+ {[%emt 0:00:09]} 54. Kd3 {[%emt 0:00:06]} Ke6 {[%emt 0:03:16]} 55. Rc6+ {[%emt 0:00:10]} Ke7 {[%emt 0:01:09]} 56. Rc5 {[%emt 0:00:52]} a4 {[%emt 0:03:04]} 57. Rc7+ {[%emt 0:01:10]} Kd6 {[%emt 0:00:17]} 58. Ra7 {[%emt 0:00:16]} Rf2 {[%emt 0:00:51]} 59. Ra6+ {[%emt 0:00:25]} Kd5 {[%emt 0:00:30]} 60. Rb6 {[%emt 0:01:34]} Rxf3+ {[%emt 0:00:22]} 61. Kd2 {[%emt 0:01:07]} Kc4 {[%emt 0:01:32]} 62. Rc6+ {[%emt 0:00:08]} Kb3 {[%emt 0:00:14]} 63. Rb6 {[%emt 0:00:13]} Rf2+ {[%emt 0:03:25]} 64. Kd3 {[%emt 0:00:11]} a3 {[%emt 0:00:14]} 65. Rxb5+ {[%emt 0:00:09]} Ka4 {[%emt 0:00:00]} 66. Rb4+ {[%emt 0:01:19]} Ka5 {[%emt 0:00:00]} 67. Rb8 {[%emt 0:00:10]} a2 {[%emt 0:00:09]} 68. d5 {[%emt 0:00:23]} Rb2 {[%emt 0:01:08]} 69. Ra8+ {[%emt 0:00:47]} Kb6 {[%emt 0:00:07]} 70. c4 {[%emt 0:00:38]} f3 {[%emt 0:00:27]} 71. Rb8+ {[%emt 0:00:54]} Kc7 {[%emt 0:00:19]} 1-0

[Event "EYCC Open-U10 2019"]
[Site "Bratislava"]
[Date "2019.08.05"]
[Round "4.6"]
[White "Giang, Tran Nam"]
[Black "Tolmacevs, Artjoms"]
[Result "1-0"]
[ECO "B90"]
[WhiteElo "1931"]
[BlackElo "1583"]
[Annotator "NA"]
[PlyCount "81"]
[EventDate "2019.08.02"]
[EventType "swiss"]
[EventCountry "SVK"]
[SourceTitle "playchess.com"]
[Source "ChessBase"]
[SourceQuality "1"]
[TimeControl "40/5400+30:1800+30"]

1. e4 {[%emt 0:00:00]} c5 {[%emt 0:00:00]} 2. Nf3 {[%emt 0:00:00]} d6 {[%emt 0:00:00]} 3. d4 {[%emt 0:00:00]} cxd4 {[%emt 0:00:07]} 4. Nxd4 {[%emt 0:00:07]} Nf6 {[%emt 0:00:07]} 5. Nc3 {[%emt 0:00:11]} a6 {[%emt 0:00:10]} 6. h3 {[%emt 0:00:23]} e5 {[%emt 0:00:10]} 7. Nde2 {[%emt 0:00:02]} h5 {[%emt 0:00:07]} 8. Bg5 {[%emt 0:00:10]} Be7 {[%emt 0:00:21]} 9. Ng3 {[%emt 0:01:28]} Be6 {[%emt 0:01:49]} 10. Bxf6 {[%emt 0:02:53]} Bxf6 {[%emt 0:00:11]} 11. Nxh5 {[%emt 0:00:49]} g6 {[%emt 0:02:00]} 12. Nxf6+ {[%emt 0:00:51]} Qxf6 {[%emt 0:00:10]} 13. Qxd6 {[%emt 0:02:17]} Nc6 {[%emt 0:00:08]} 14. Nd5 {[%emt 0:00:27]} Qd8 {[%emt 0:04:43]} 15. Nc7+ {[%emt 0:00:11]} Qxc7 {[%emt 0:00:05]} 16. Qxc7 {[%emt 0:00:06]} O-O {[%emt 0:00:06]} 17. Qb6 {[%emt 0:01:05]} Nd4 {[%emt 0:00:28]} 18. Bd3 {[%emt 0:00:23]} Rac8 {[%emt 0:00:09]} 19. c3 {[%emt 0:00:19]} Bc4 {[%emt 0:00:59]} 20. Bxc4 {[%emt 0:02:07]} Nc2+ {[%emt 0:00:06]} 21. Kd2 {[%emt 0:00:06]} Nxa1 {[%emt 0:00:10]} 22. Qxg6+ {[%emt 0:00:06]} Kh8 {[%emt 0:00:10]} 23. Qh6+ {[%emt 0:00:10]} Kg8 {[%emt 0:00:07]} 24. Bd3 {[%emt 0:00:13]} Rc6 {[%emt 0:00:12]} 25. Qe3 {[%emt 0:00:30]} Re8 {[%emt 0:00:19]} 26. Rxa1 {[%emt 0:00:04]} Rd6 {[%emt 0:00:10]} 27. Kc2 {[%emt 0:00:10]} Red8 {[%emt 0:00:06]} 28. Rd1 {[%emt 0:00:11]} b5 {[%emt 0:00:08]} 29. Be2 {[%emt 0:00:08]} Rxd1 {[%emt 0:00:09]} 30. Bxd1 {[%emt 0:00:06]} Rd6 {[%emt 0:00:06]} 31. Qg5+ {[%emt 0:00:09]} Rg6 {[%emt 0:00:06]} 32. Qxe5 {[%emt 0:00:12]} Rxg2 {[%emt 0:00:09]} 33. Qg3+ {[%emt 0:00:04]} Rxg3 {[%emt 0:00:10]} 34. fxg3 {[%emt 0:00:01]} Kh7 {[%emt 0:00:08]} 35. Kd3 {[%emt 0:00:03]} Kh6 {[%emt 0:00:07]} 36. a4 {[%emt 0:00:05]} f5 {[%emt 0:00:05]} 37. axb5 {[%emt 0:00:07]} axb5 {[%emt 0:00:08]} 38. exf5 {[%emt 0:00:07]} Kg5 {[%emt 0:00:09]} 39. Ke4 {[%emt 0:00:05]} Kf6 {[%emt 0:00:08]} 40. g4 {[%emt 0:00:00]} Kg5 {[%emt 0:00:00]} 41. Ke5 {[%emt 0:00:07]} 1-0